bitfinex/quotes_ETHUSD_20251024
["timestamp","ask_amount","ask_price","bid_price","bid_amount"]
[1761334837040,0.001,3927.3,3927.2,2.54634345]
[1761334837240,0.001,3927.3,3927.2,2.59894345]
[1761334837241,3.228,3927.3,3927.2,2.59894345]
[1761334837460,3.228,3927.3,3927.1,3.2135787]
[1761334837765,3.228,3927.3,3927.1,3.2661787]
[1761334838060,3.228,3927.3,3927.2,0.38634787]
[1761334840339,3.228,3927.3,3927.1,0.1272]
[1761334840546,3.228,3927.3,3927.1,2.67360382]
[1761334842267,0.001,3927.3,3927.1,2.67360382]
[1761334842432,3.226,3927.2,3927.1,2.67360382]
[1761334842838,0.001,3927.3,3927.2,2.54634345]
[1761334843068,3.227,3927.3,3927.2,3.12806818]
[1761334843378,3.227,3927.3,3927.2,3.18066818]
[1761334844267,0.001,3927.3,3927.2,3.12806818]
[1761334844569,3.227,3927.3,3927.2,3.12806818]
[1761334844947,3.227,3927.3,3927.2,3.18066818]
[1761334845572,3.227,3927.3,3927.2,0.58172473]
[1761334847375,4.10154345,3927.2,3926.3,0.002]
[1761334847560,1.5552,3927.1,3926.3,0.002]
[1761334847885,2.54660827,3926.8,3926.3,0.002]
[1761334848086,5.77268531,3926.7,3926.3,0.002]
[1761334848256,3.226,3926.6,3926.3,0.002]
[1761334851283,0.2177,3927.1,3926.3,0.002]
[1761334851464,5.77251611,3927.0,3926.3,2.60151012]
[1761334851663,5.77251611,3927.0,3926.4,0.52011595]
[1761334852052,2.54654662,3926.9,3926.4,0.52011595]
[1761334852393,2.54661101,3926.8,3926.3,0.002]
[1761334852862,0.4392,3926.7,3926.3,0.002]
[1761334853063,3.226,3926.6,3926.3,0.002]
[1761334853481,2.54680151,3926.5,3926.3,0.002]
[1761334853681,2.98600151,3926.5,3926.3,0.002]
[1761334853883,0.4392,3926.5,3926.3,0.002]
[1761334855073,1.06039839,3926.5,3926.3,0.002]
[1761334855276,2.54686226,3926.4,3926.3,0.002]
[1761334855679,3.226,3926.4,3926.3,0.002]
[1761334856489,6.21206226,3926.4,3926.3,0.002]
[1761334857457,6.21206226,3926.4,3926.3,0.1292]
[1761334862792,2.98606226,3926.4,3926.3,0.1292]
[1761334862996,6.21206226,3926.4,3926.3,0.1292]
[1761334865989,3.6652,3926.4,3926.3,0.1292]
[1761334866496,6.21206226,3926.4,3926.3,0.1292]
[1761334868396,0.001,3927.3,3926.3,0.002]
[1761334868582,0.001,3927.3,3926.6,5.06414844]
[1761334868785,3.227,3927.3,3927.0,2.54647212]
[1761334869089,3.227,3927.3,3927.1,2.5463991]
[1761334869288,0.001,3927.3,3927.2,2.54634345]
[1761334869493,0.001,3927.3,3926.7,0.51167484]
[1761334869494,3.227,3927.3,3927.1,2.54639862]
[1761334869692,3.227,3927.3,3927.2,0.76484272]
[1761334870288,3.227,3927.3,3927.2,1.35062007]
[1761334870691,3.227,3927.3,3926.9,2.54648458]
[1761334870896,3.227,3927.3,3926.7,0.51167484]
[1761334871101,3.227,3927.3,3927.0,0.76490123]
[1761334872502,0.001,3927.3,3927.0,3.31136177]
[1761334872818,3.226,3927.2,3927.0,3.31136177]
[1761334873012,3.226,3927.2,3927.0,3.36396177]
[1761334873417,3.226,3927.2,3927.0,0.76490123]
[1761334874141,3.226,3927.2,3927.0,1.35596686]
[1761334876294,3.226,3927.2,3927.0,0.76490123]
[1761334876916,0.4539,3927.1,3925.9,0.002]
[1761334877105,2.241,3927.1,3925.9,0.002]
[1761334877299,2.54679981,3926.5,3925.9,0.76708459]
[1761334877495,5.77286226,3926.4,3925.9,0.002]
[1761334877706,3.226,3926.4,3925.9,0.002]
[1761334877918,3.6799,3926.4,3925.9,0.002]
[1761334878318,1.5552,3926.8,3925.9,0.002]
[1761334878534,0.1282,3927.3,3926.3,0.1292]
[1761334878836,1.5552,3927.1,3926.6,2.54667819]
[1761334879298,1.5552,3927.1,3927.0,0.1272]
[1761334879505,3.226,3927.2,3927.0,0.1272]
[1761334880111,0.001,3927.3,3927.0,0.1272]
[1761334880434,3.228,3927.1,3927.0,0.1272]
[1761334880618,3.228,3927.1,3926.9,2.54652741]
[1761334880819,3.228,3927.1,3927.0,0.1272]
[1761334884410,0.001,3927.3,3927.2,2.54634345]
[1761334884609,0.001,3927.3,3927.0,0.26737349]
[1761334884809,0.001,3927.3,3927.2,2.54634345]
[1761334885331,0.001,3927.3,3927.2,2.59894345]
[1761334887345,0.001,3927.3,3927.2,3.36375108]
[1761334887546,0.001,3927.3,3927.2,4.48812355]
[1761334892826,0.001,3927.3,3927.2,7.71412355]
[1761334894449,0.001,3927.3,3927.2,7.84132355]
[1761334897367,0.001,3927.3,3927.2,8.5210711]
[1761334901570,0.001,3927.3,3927.2,15.64729954]
[1761334901871,0.001,3927.3,3927.2,9.90340355]
[1761334903574,0.001,3927.3,3927.2,14.96755199]
[1761334905639,0.001,3927.7,3927.6,14.229581]
[1761334905937,0.001,3927.7,3927.6,20.24325349]
[1761334906258,0.001,3927.7,3927.6,19.75526345]
[1761334908489,0.001,3927.7,3927.6,20.26214345]
[1761334913376,0.001,3927.7,3927.6,21.61290255]
[1761334915699,0.001,3927.7,3927.6,21.56030255]
[1761334915888,0.001,3927.7,3927.6,21.61190255]
[1761334916088,0.001,3927.7,3927.6,15.54350891]
[1761334916294,0.001,3927.7,3927.6,15.14439501]
[1761334916676,0.001,3927.7,3927.6,16.050536]
[1761334919210,0.001,3927.7,3927.6,15.14439501]
[1761334919507,0.001,3927.7,3927.6,16.05099293]
[1761334919712,0.001,3927.7,3927.6,15.14439501]
[1761334920190,0.001,3927.7,3927.6,14.63751501]
[1761334920391,0.4577,3927.7,3927.6,8.01816657]
[1761334920575,0.001,3927.7,3927.6,8.69837789]
[1761334921874,0.4577,3927.7,3927.6,8.69837789]
[1761334922076,0.4577,3927.7,3927.6,8.01816657]
[1761334922285,0.4577,3927.7,3927.6,8.69837789]
[1761334924328,0.001,3927.7,3927.6,8.69837789]
[1761334925213,0.001,3927.7,3927.6,8.01816657]
[1761334926301,0.001,3927.7,3927.6,9.57336657]
[1761334926534,0.001,3927.7,3927.6,9.33626657]
[1761334928802,0.001,3927.7,3927.6,15.40500754]
[1761334929203,0.001,3927.7,3927.6,16.31160546]
[1761334929827,0.4666,3927.7,3927.6,15.40500754]
[1761334930030,0.001,3927.7,3927.6,15.40500754]
[1761334930202,0.4666,3927.7,3927.6,15.40500754]
[1761334931329,0.4666,3927.7,3927.6,9.33626657]
[1761334931555,0.4666,3927.7,3927.6,7.78106657]
[1761334931776,0.4666,3927.7,3927.6,8.46219068]
[1761334932421,0.4666,3927.7,3927.6,6.57840823]
[1761334934354,0.4666,3927.7,3927.6,3.35440823]
[1761334937365,0.4666,3927.7,3927.6,0.1272]
[1761334937566,0.4666,3927.7,3927.6,2.67328412]
[1761334938750,0.4666,3927.7,3927.6,0.1272]
[1761334938951,0.4666,3927.7,3927.6,2.67328412]
[1761334939389,0.4666,3927.7,3927.6,0.1272]
[1761334940048,0.4666,3927.7,3927.6,2.67328412]
[1761334943451,0.001,3927.7,3927.6,2.67328412]
[1761334943753,0.001,3927.7,3927.6,9.13697164]
[1761334944352,0.001,3927.7,3927.6,3.06823067]
[1761334946122,0.4666,3927.7,3927.6,3.06823067]
[1761334947602,0.001,3927.7,3927.6,3.06823067]
[1761334949194,0.4666,3927.7,3927.6,3.06823067]
[1761334950398,0.001,3927.7,3927.6,3.06823067]
[1761334950597,0.4666,3927.7,3927.6,3.06823067]
[1761334951003,0.4666,3927.7,3927.6,2.54608412]
[1761334953829,0.4666,3927.7,3927.6,2.67328412]
[1761334959100,0.001,3927.7,3927.6,8.76748593]
[1761334959306,0.4652,3927.7,3927.6,8.74202509]
[1761334959523,0.4652,3927.7,3927.6,3.87041509]
[1761334959721,0.4652,3927.7,3927.6,2.67328412]
[1761334960940,0.001,3927.7,3927.6,2.67328412]
[1761334961147,0.4652,3927.7,3927.6,2.69874496]
[1761334961309,0.4652,3927.7,3927.6,2.67328412]
[1761334967024,0.001,3927.7,3927.6,2.67328412]
[1761334967218,0.001,3927.7,3927.6,3.26354099]
[1761334967947,0.4652,3927.7,3927.6,3.26354099]
[1761334968518,0.001,3927.7,3927.6,3.26354099]
[1761334969854,0.4652,3927.7,3927.6,3.26354099]
[1761334970238,0.001,3927.7,3927.6,3.26354099]
[1761334971881,0.4652,3927.7,3927.6,3.26354099]
[1761334972829,0.001,3927.7,3927.6,3.26354099]
[1761334975971,0.4652,3927.7,3927.6,3.26354099]
[1761334977275,0.4652,3927.7,3927.6,2.67328412]
[1761334982079,0.001,3927.7,3927.6,2.67328412]
[1761334982450,0.474,3927.7,3927.6,2.67328412]
[1761334982650,0.001,3927.7,3927.6,2.67328412]
[1761334982984,0.001,3927.7,3927.6,8.74202509]
[1761334983195,0.001,3927.7,3927.6,13.18996344]
[1761334983502,0.001,3927.7,3927.6,14.14916136]
[1761334983670,0.001,3927.7,3927.6,13.24256344]
[1761334984710,0.001,3927.7,3927.6,14.14916136]
[1761334985071,0.001,3927.7,3927.6,14.09656136]
[1761334985378,0.001,3927.7,3927.6,13.74944344]
[1761334985586,0.001,3927.7,3927.6,15.30464344]
[1761334986366,0.001,3927.7,3927.6,15.62208859]
[1761334987175,0.001,3928.1,3928.0,2.54582484]
[1761334987504,0.001,3928.1,3928.0,15.52281143]
[1761334987704,0.001,3928.1,3928.0,15.65001143]
[1761334987875,0.001,3928.1,3928.0,16.12301143]
[1761334988205,0.001,3928.1,3928.0,16.07041143]
[1761334988389,0.001,3928.1,3928.0,16.12136089]
[1761334988575,0.001,3928.1,3928.0,15.21422678]
[1761334990102,0.001,3928.1,3928.0,18.21422678]
[1761334990788,0.001,3928.1,3928.0,17.20186065]
[1761334990975,0.001,3928.1,3928.0,11.63860581]
[1761334991176,0.4485,3928.1,3928.0,17.37519913]
[1761334991690,0.4485,3928.1,3928.0,14.15319913]
[1761334994078,0.4485,3928.1,3928.0,13.47298065]
[1761334994506,0.4485,3928.1,3928.0,11.91778065]
[1761334994798,0.4485,3928.1,3928.0,5.67302484]
[1761334994995,0.4485,3928.1,3928.0,2.67302484]
[1761334998190,0.4485,3928.1,3928.0,0.1272]
[1761334999601,0.4485,3928.1,3928.0,2.67302484]
[1761335000578,0.4485,3928.1,3928.0,0.1272]
[1761335002214,0.4485,3928.1,3928.0,2.67302484]
[1761335003229,1.12697516,3928.0,3927.7,2.54601826]
[1761335003414,1.12697516,3928.0,3927.9,2.54588966]
[1761335003616,1.12697516,3928.0,3927.9,2.67308966]
[1761335004589,1.57447516,3928.0,3927.9,2.67308966]
[1761335006462,1.12697516,3928.0,3927.9,8.25157529]
[1761335006970,1.12697516,3928.0,3927.9,2.67308966]
[1761335007165,1.57447516,3928.0,3927.9,2.67308966]
[1761335010575,1.57447516,3928.0,3927.9,2.67308966]
[1761335013060,0.4475,3928.0,3927.9,0.1272]
[1761335013293,0.4475,3928.0,3927.9,2.67308966]
[1761335015072,0.4475,3928.0,3927.9,0.1272]
[1761335016006,0.001,3928.1,3927.9,0.1272]
[1761335016207,0.4475,3928.0,3927.9,2.67308966]
[1761335018286,3.222,3928.1,3928.0,2.54582484]
[1761335018817,3.671,3928.1,3928.0,2.54582484]
[1761335019511,0.45,3928.1,3928.0,2.54582484]
[1761335019980,0.001,3928.1,3928.0,2.54582484]
[1761335021230,0.001,3928.1,3928.0,3.06772269]
[1761335021755,0.001,3928.1,3928.0,3.09318093]
[1761335021938,0.001,3928.1,3928.0,3.06772269]
[1761335022741,0.45,3928.1,3928.0,3.06772269]
[1761335023212,0.45,3928.1,3928.0,2.54582484]
[1761335031318,0.45,3928.1,3927.9,0.1292]
[1761335031523,0.45,3928.1,3927.9,2.67507355]
[1761335032916,0.45,3928.1,3928.0,2.54582484]
[1761335033115,0.45,3928.1,3927.9,2.67507842]
[1761335033450,0.45,3928.1,3927.9,0.1292]
[1761335033950,0.45,3928.1,3927.9,2.67506593]
[1761335034325,0.45,3928.1,3928.0,2.54582484]
[1761335036258,0.45,3928.1,3927.9,2.67504523]
[1761335037545,0.45,3928.1,3928.0,2.54582484]
[1761335038055,0.001,3928.1,3928.0,2.54582484]
[1761335040552,0.001,3928.1,3928.0,2.67302484]
[1761335040753,0.001,3928.1,3928.0,3.7690197]
[1761335040959,0.001,3928.1,3928.0,4.45166778]
[1761335041337,0.001,3928.1,3928.0,12.72793984]
[1761335041848,0.001,3928.1,3928.0,14.02793984]
[1761335042761,0.001,3928.1,3928.0,13.34539454]
[1761335042965,0.001,3928.1,3928.0,13.39799454]
[1761335043128,0.001,3928.1,3928.0,14.95319454]
[1761335043668,0.001,3928.1,3928.0,16.92407352]
[1761335043878,0.001,3928.1,3928.0,15.56200887]
[1761335044364,0.001,3928.1,3928.0,16.92478667]
[1761335047350,0.001,3928.1,3928.0,15.56200887]
[1761335050738,0.001,3928.1,3928.0,16.57171092]
[1761335052364,0.001,3928.1,3928.0,17.93448872]
[1761335052767,0.001,3928.1,3928.0,17.93182664]
[1761335053662,0.001,3928.1,3928.0,16.57171092]
[1761335054258,0.001,3928.5,3928.0,16.57171092]
[1761335054259,0.001,3928.5,3928.4,3.05244562]
[1761335054461,0.001,3928.5,3928.4,15.51426609]
[1761335054675,0.001,3928.5,3928.4,14.78785148]
[1761335055055,0.001,3928.5,3928.4,15.02495148]
[1761335056287,0.001,3928.5,3928.4,15.93079205]
[1761335057060,0.001,3928.5,3928.4,15.02495148]
[1761335057388,0.4661,3930.0,3928.8,10.67346334]
[1761335057553,0.4661,3930.0,3928.8,15.65981415]
[1761335057888,0.4661,3930.0,3928.8,17.06994301]
[1761335058194,0.001,3930.0,3928.8,20.21604301]
[1761335058395,0.4651,3929.7,3928.8,16.12591415]
[1761335058599,0.4651,3929.7,3928.8,16.17851415]
[1761335062491,0.001,3929.3,3928.8,16.17851415]
[1761335067117,0.001,3929.3,3928.8,16.30571415]
[1761335068013,0.001,3929.3,3928.8,16.25311415]
[1761335068213,0.4651,3929.2,3928.8,16.25311415]
[1761335068814,0.001,3929.3,3928.8,16.25311415]
[1761335069393,0.001,3929.3,3928.8,17.61064301]
[1761335070299,0.001,3929.3,3928.8,17.66324301]
[1761335070817,0.001,3929.3,3928.8,16.30571415]
[1761335072909,0.001,3929.3,3928.8,16.25311415]
[1761335073114,0.4651,3929.1,3928.8,17.61168045]
[1761335073316,0.4651,3929.1,3928.8,16.25311415]
[1761335073530,0.4651,3929.1,3928.8,17.61202944]
[1761335075328,0.4651,3929.1,3928.8,16.25311415]
[1761335075542,0.6821,3928.9,3928.8,16.25311415]
[1761335077031,0.6821,3928.9,3928.8,15.74623415]
[1761335078429,0.217,3928.9,3928.8,15.74623415]
[1761335078730,0.6447,3928.9,3928.8,15.74623415]
[1761335079133,0.6447,3928.9,3928.8,14.19103415]
[1761335079432,0.6447,3928.9,3928.8,16.65307935]
[1761335079619,0.6447,3928.9,3928.8,16.18697935]
[1761335081945,0.001,3928.9,3928.8,15.28013415]
[1761335085239,0.001,3928.9,3928.8,16.63904944]
[1761335085405,0.001,3928.9,3928.8,17.06674944]
[1761335085737,0.4287,3928.9,3928.8,17.06674944]
[1761335089942,0.4287,3928.9,3928.8,7.22677255]
[1761335090255,0.4287,3928.9,3928.8,7.31750645]
[1761335092252,0.001,3928.9,3928.8,7.31750645]
[1761335093261,0.4287,3928.9,3928.8,4.10050645]
[1761335094763,0.4287,3928.9,3928.8,2.54530645]
[1761335099958,0.4287,3928.9,3928.8,2.67250645]
[1761335105662,0.4287,3928.9,3928.8,0.1272]
[1761335106058,0.72607634,3928.9,3928.8,0.1272]
[1761335107261,0.4287,3928.9,3928.8,0.1272]
[1761335109713,0.4287,3928.9,3928.8,2.67250645]
[1761335111731,0.001,3928.9,3928.8,2.67250645]
[1761335112797,0.001,3928.9,3928.8,7.72684425]
[1761335114302,0.001,3928.9,3928.8,15.52447584]
[1761335114504,0.001,3928.9,3928.8,17.58617831]
[1761335114698,0.001,3928.9,3928.8,12.47924051]
[1761335116323,0.001,3928.9,3928.8,12.53184051]
[1761335116802,0.001,3928.9,3928.8,12.47924051]
[1761335118338,0.001,3928.9,3928.8,13.38630968]
[1761335120610,0.6858,3928.9,3928.8,4.89212271]
[1761335121395,0.001,3928.9,3928.8,9.81926051]
[1761335121633,0.001,3928.9,3928.8,10.62703388]
[1761335122028,0.001,3928.9,3928.8,9.94646051]
[1761335123317,0.001,3928.9,3928.8,11.50166051]
[1761335125740,0.001,3928.9,3928.8,12.40872968]
[1761335126099,0.001,3928.9,3928.8,11.50166051]
[1761335126305,0.001,3928.9,3928.8,11.71676051]
[1761335132014,0.4707,3928.9,3928.8,2.67250645]
[1761335133533,0.001,3928.9,3928.8,2.67250645]
[1761335133735,0.4707,3928.9,3928.8,2.67250645]
[1761335137357,0.001,3928.9,3928.8,3.35329809]
[1761335139258,0.001,3928.9,3928.8,2.67250645]
[1761335140744,0.4453,3928.9,3928.8,3.35404867]
[1761335145982,0.001,3928.9,3928.8,3.35404867]
[1761335147250,0.4453,3928.9,3928.8,3.35404867]
[1761335148588,0.001,3928.9,3928.8,3.35404867]
[1761335148771,0.001,3928.9,3928.8,7.94963776]
[1761335148964,0.001,3928.9,3928.8,7.39529554]
[1761335149889,0.4453,3928.9,3928.8,7.39529554]
[1761335150450,0.001,3928.9,3928.8,7.39529554]
[1761335151862,0.4453,3928.9,3928.8,7.39529554]
[1761335152761,0.4453,3928.9,3928.8,4.18029554]
[1761335152973,0.4453,3928.9,3928.8,2.67250645]
[1761335154085,0.4453,3928.9,3928.8,3.35472981]
[1761335154403,0.4453,3928.9,3928.8,0.1272]
[1761335155199,0.4453,3928.9,3928.8,2.67250645]
[1761335161296,0.001,3928.9,3928.8,2.67250645]
[1761335161514,0.001,3928.9,3928.8,12.55062805]
[1761335161657,0.001,3928.9,3928.8,13.31496023]
[1761335161861,0.001,3928.9,3928.8,11.95604494]
[1761335162863,0.001,3928.9,3928.8,6.90170714]
[1761335163191,0.001,3928.9,3928.8,6.84910714]
[1761335163491,0.001,3928.9,3928.8,8.21211065]
[1761335165376,0.001,3928.9,3928.8,8.26471065]
[1761335165577,0.001,3928.9,3928.8,13.31904845]
[1761335166293,0.001,3928.9,3928.8,8.26471065]
[1761335166493,0.001,3928.9,3928.8,13.31904845]
[1761335166693,0.001,3928.9,3928.8,8.26471065]
[1761335168307,0.001,3928.9,3928.8,10.06310714]
[1761335168898,0.001,3928.9,3928.8,11.42611065]
[1761335169105,0.001,3928.9,3928.8,10.06310714]
[1761335170408,0.001,3928.9,3928.8,4.78702714]
[1761335170623,0.6709,3928.9,3928.8,3.22673742]
[1761335170798,0.6709,3928.9,3928.8,2.54530645]
[1761335174031,0.001,3928.9,3928.8,7.59964425]
[1761335174208,0.001,3928.9,3928.8,8.28107522]
[1761335174729,0.448,3928.9,3928.8,3.67373742]
[1761335174934,0.448,3928.9,3928.8,2.99230645]
[1761335178429,0.448,3928.9,3928.8,2.54530645]
[1761335179534,0.448,3928.9,3928.8,3.22673742]
[1761335180537,0.448,3928.9,3928.8,3.35393742]
[1761335181841,0.001,3928.9,3928.8,3.35393742]
[1761335182211,0.001,3928.9,3928.8,14.55501819]
[1761335182403,0.001,3928.9,3928.8,14.60761819]
[1761335182603,0.001,3928.9,3928.8,15.00301819]
[1761335183514,0.001,3928.9,3928.8,15.91114502]
[1761335184115,0.001,3928.9,3928.8,15.00301819]
[1761335184736,0.001,3928.9,3928.8,15.9110938]
[1761335186038,0.001,3928.9,3928.8,15.00301819]
[1761335186632,0.001,3928.9,3928.8,15.91126531]
[1761335186947,0.001,3928.9,3928.8,15.00301819]
[1761335187836,0.001,3928.9,3928.8,15.91140643]
[1761335188337,0.001,3928.9,3928.8,15.00301819]
[1761335188543,0.001,3928.9,3928.8,8.93687893]
[1761335188749,0.448,3928.9,3928.8,8.93687893]
[1761335189132,0.001,3928.9,3928.8,8.93687893]
[1761335190020,0.001,3928.9,3928.8,15.00301819]
[1761335196986,0.448,3928.9,3928.8,15.00301819]
[1761335197189,0.448,3928.9,3928.8,0.80929839]
[1761335197485,0.448,3928.9,3928.8,2.67250645]
[1761335198987,0.448,3928.9,3928.8,0.1272]
[1761335204325,0.448,3928.9,3928.7,0.1272]
[1761335204680,3.661,3928.9,3928.7,0.1272]
[1761335204975,4.0271,3928.9,3928.7,0.1272]
[1761335205205,0.472,3928.8,3928.7,0.1272]
[1761335208280,0.472,3928.8,3928.6,0.1272]
[1761335208707,0.472,3928.8,3928.5,0.002]
[1761335209146,2.5454152,3928.7,3928.5,0.002]
[1761335209439,0.53180837,3928.6,3928.5,0.002]
[1761335209637,1.00380837,3928.6,3928.5,0.002]
[1761335210009,9.61538366,3928.6,3928.5,0.002]
[1761335210215,12.82938366,3928.6,3928.5,0.002]
[1761335210412,14.38458366,3928.6,3928.5,0.002]
[1761335214164,14.89146366,3928.6,3928.5,0.002]
[1761335215146,2.56000837,3928.6,3928.5,0.002]
[1761335215418,5.2422,3928.6,3928.5,0.002]
[1761335216035,7.78763603,3928.6,3928.5,0.002]
[1761335217019,4.57363603,3928.6,3928.5,0.002]
[1761335217219,4.70083603,3928.6,3928.5,0.002]
[1761335217420,7.91483603,3928.6,3928.5,0.002]
[1761335221241,3.04352381,3928.5,3928.1,0.002]
[1761335221447,2.5456791,3928.3,3928.1,0.002]
[1761335221652,5.75969522,3928.2,3928.1,0.002]
[1761335221959,5.88689522,3928.2,3928.1,0.002]
[1761335222123,6.36129522,3928.2,3928.1,0.002]
[1761335231317,0.6016,3928.2,3928.1,0.002]
[1761335231471,3.8071,3928.2,3928.1,0.002]
[1761335232497,0.1272,3928.2,3928.1,0.002]
[1761335232790,0.498,3928.5,3928.4,2.54556562]
[1761335233008,3.712,3928.5,3928.3,2.54561012]
[1761335233170,3.712,3928.5,3928.2,2.54567709]
[1761335233369,3.712,3928.5,3928.3,2.54562824]
[1761335233600,3.712,3928.5,3928.4,0.76468286]
[1761335233770,0.498,3928.5,3928.4,0.76468286]
[1761335233972,3.713,3928.5,3928.4,3.31024848]
[1761335236085,3.713,3928.5,3928.4,0.76468286]
[1761335237381,3.713,3928.5,3928.4,3.31024848]
[1761335238852,3.713,3928.5,3928.4,0.76468286]
[1761335239059,4.1789,3928.5,3928.4,0.76468286]
[1761335239260,4.1789,3928.5,3928.1,0.002]
[1761335239261,4.5503,3928.5,3928.1,0.002]
[1761335239543,0.4659,3928.4,3928.1,0.002]
[1761335240103,5.52366907,3928.4,3928.1,0.002]
[1761335240299,2.54569522,3928.2,3928.1,0.002]
[1761335240543,5.75969522,3928.2,3928.1,0.002]
[1761335240715,6.22559522,3928.2,3928.1,0.002]
[1761335242308,3.6799,3928.2,3928.1,0.002]
[1761335242536,3.214,3928.2,3928.1,0.002]
[1761335242740,4.0513,3928.2,3928.1,0.002]
[1761335242945,6.59699522,3928.2,3928.1,0.002]
[1761335243154,4.0513,3928.2,3928.1,0.002]
[1761335244036,0.3714,3928.2,3928.1,0.002]
[1761335244236,3.214,3928.2,3928.1,0.002]
[1761335245140,0.499,3928.5,3928.1,0.002]
[1761335245344,3.214,3928.4,3928.1,0.1292]
[1761335245851,3.214,3928.4,3928.1,2.67493089]
[1761335246582,0.499,3928.5,3928.1,2.67493089]
[1761335246583,0.499,3928.5,3928.1,0.002]
[1761335246771,3.214,3928.4,3928.3,2.67282475]
[1761335246972,0.499,3928.5,3928.3,2.67282475]
[1761335247173,3.214,3928.4,3928.3,0.1272]
[1761335248880,3.5854,3928.4,3928.3,0.1272]
[1761335249280,4.0513,3928.4,3928.3,0.1272]
[1761335249483,3.5854,3928.4,3928.3,0.1272]
[1761335249656,0.3714,3928.4,3928.1,0.002]
[1761335249860,3.213,3928.3,3928.2,0.1272]
[1761335250379,3.6789,3928.3,3928.2,0.1272]
[1761335252685,3.213,3928.3,3928.2,0.1272]
[1761335254005,0.9649,3928.5,3928.2,0.1272]
[1761335254219,3.213,3928.4,3928.2,0.1272]
[1761335254513,3.213,3928.3,3928.2,2.67285098]
[1761335254872,3.213,3928.3,3928.2,0.1272]
[1761335256309,0.499,3928.5,3928.2,0.1272]
[1761335256505,0.499,3928.5,3928.4,2.54556562]
[1761335256683,3.712,3928.5,3928.4,2.67276562]
[1761335257076,3.712,3928.5,3928.4,2.54556562]
[1761335257077,0.499,3928.5,3928.4,2.54556562]
[1761335257278,0.499,3928.5,3928.4,3.28458642]
[1761335257480,0.499,3928.5,3928.4,5.33878642]
[1761335257708,1e-08,3928.6,3928.5,3.10498082]
[1761335258010,0.001,3928.9,3928.8,3.05218645]
[1761335258190,0.001,3928.9,3928.8,19.24243813]
[1761335258386,0.001,3928.9,3928.8,20.2040027]
[1761335258707,0.001,3928.9,3928.8,20.30591469]
[1761335259107,0.001,3928.9,3928.8,19.39695012]
[1761335259310,0.001,3928.9,3928.8,20.30503933]
[1761335260006,0.001,3928.9,3928.8,20.30504056]
[1761335260314,1e-08,3929.3,3929.2,3.10452733]
[1761335260484,1e-08,3929.3,3929.2,14.08226814]
[1761335260681,1e-08,3929.3,3929.2,13.45432913]
[1761335262482,1e-08,3929.3,3929.2,14.13381427]
[1761335264403,1e-08,3929.3,3929.2,13.45432913]
[1761335264609,1e-08,3929.3,3929.2,13.55622503]
[1761335265384,0.001,3930.9,3929.4,0.50688]
[1761335265609,0.001,3930.9,3930.8,7.60178046]
[1761335266001,0.001,3930.9,3930.8,7.75625456]
[1761335267621,0.001,3930.9,3930.8,7.88345456]
[1761335268582,0.001,3930.9,3930.8,0.2290741]
[1761335268818,0.6978,3930.9,3930.8,0.1018741]
[1761335269048,0.001,3930.9,3930.8,0.1018741]
[1761335269222,0.001,3930.9,3930.8,7.70365456]
[1761335269414,0.001,3930.9,3930.8,8.47402002]
[1761335269746,0.001,3930.9,3930.8,6.62825095]
[1761335274430,0.001,3930.9,3930.8,6.68085095]
[1761335275347,0.001,3930.9,3930.8,6.62825095]
[1761335278765,0.001,3930.9,3930.8,6.75545095]
[1761335280268,0.001,3930.9,3930.8,6.80805095]
[1761335280668,0.001,3930.9,3930.8,27.9005591]
[1761335280843,0.001,3930.9,3930.8,28.71260442]
[1761335281043,0.001,3930.9,3930.8,24.54171764]
[1761335281939,0.001,3930.9,3930.8,24.79651764]
[1761335282550,0.001,3930.9,3930.8,25.47440163]
[1761335282933,0.001,3931.7,3931.6,3.05037374]
[1761335283137,0.001,3931.7,3931.6,8.37696841]
[1761335283373,0.001,3931.7,3931.6,8.55676841]
[1761335283570,0.001,3931.7,3931.6,8.6586036]
[1761335284358,0.001,3931.7,3931.6,8.6060036]
[1761335284863,0.001,3931.7,3931.6,8.6586036]
[1761335286058,0.001,3931.7,3931.6,9.33648759]
[1761335286356,0.001,3931.7,3931.6,8.6586036]
[1761335286558,0.001,3931.7,3931.6,8.6060036]
[1761335286870,0.001,3931.7,3931.6,8.6586036]
[1761335287196,0.001,3931.7,3931.6,4.7599236]
[1761335287379,0.001,3931.7,3931.6,7.9729236]
[1761335288558,0.001,3931.7,3931.6,4.65808841]
[1761335288779,0.4416,3931.7,3931.6,4.65808841]
[1761335292913,0.001,3931.7,3931.6,4.65808841]
[1761335293119,0.001,3931.7,3931.6,5.8954524]
[1761335293297,1e-08,3932.1,3932.0,4.60531499]
[1761335293608,1e-08,3932.1,3932.0,8.53317784]
[1761335293770,1e-08,3932.1,3932.0,9.21154512]
[1761335293979,1e-08,3932.1,3932.0,9.36597279]
[1761335294177,1e-08,3932.1,3932.0,9.36565388]
[1761335294418,1e-08,3932.1,3932.0,8.63500551]
[1761335294597,1e-08,3932.1,3932.0,9.31333802]
[1761335295115,1e-08,3932.1,3932.0,8.63500551]
[1761335295405,1e-08,3932.1,3932.0,9.31333802]
[1761335296810,1e-08,3932.1,3932.0,8.80645802]
[1761335296982,1e-08,3932.1,3932.0,8.93365802]
[1761335297189,1e-08,3932.1,3932.0,13.28053802]
[1761335297390,1e-08,3932.1,3932.0,12.60220551]
[1761335298815,1e-08,3932.1,3932.0,13.17871035]